[Event "Early-Titled-Tuesday-Blitz-February-13-2024"]
[Site "Chess.com"]
[Date "2024.02.13"]
[Round "4"]
[White "Iskusnyh"]
[Black "TigrVShlyape"]
[Result "1/2-1/2"]
[WhiteElo "2659"]
[BlackElo "2863"]
[TimeControl "180+1"]
[EndTime "8:42:52 PST"]
[Termination "Game drawn by repetition"]

1. d4 {[%clk 0:03:00.9]} 1... f5 {[%clk 0:02:59.5]} 2. c4 {[%clk 0:02:57.6]}
2... Nf6 {[%clk 0:02:59]} 3. Nf3 {[%clk 0:02:57.7]} 3... e6 {[%clk 0:02:58.8]}
4. g3 {[%clk 0:02:51.8]} 4... b6 {[%clk 0:02:48]} 5. Bg2 {[%clk 0:02:50.2]} 5...
Bb4+ {[%clk 0:02:45.5]} 6. Nfd2 {[%clk 0:02:45]} 6... c6 {[%clk 0:02:25.9]} 7.
O-O {[%clk 0:02:43.7]} 7... d5 {[%clk 0:02:19.8]} 8. b3 {[%clk 0:02:08.2]} 8...
O-O {[%clk 0:02:18.5]} 9. Ba3 {[%clk 0:02:07.2]} 9... a5 {[%clk 0:02:15.2]} 10.
Qc1 {[%clk 0:01:57.3]} 10... Qe7 {[%clk 0:02:08.4]} 11. Nf3 {[%clk 0:01:52.8]}
11... Nbd7 {[%clk 0:01:55.7]} 12. Bb2 {[%clk 0:01:45.8]} 12... Bd6 {[%clk
0:01:47.5]} 13. Nc3 {[%clk 0:01:37.7]} 13... Ba6 {[%clk 0:01:45.2]} 14. Re1
{[%clk 0:01:04.5]} 14... Rac8 {[%clk 0:01:42.7]} 15. Qd2 {[%clk 0:01:02.7]}
15... Ne4 {[%clk 0:01:41.2]} 16. Qc2 {[%clk 0:00:55.4]} 16... g5 {[%clk
0:01:18.7]} 17. Rac1 {[%clk 0:00:46.6]} 17... g4 {[%clk 0:01:17.5]} 18. Nh4
{[%clk 0:00:45.1]} 18... Qg5 {[%clk 0:01:10.7]} 19. f4 {[%clk 0:00:25]} 19...
Bxf4 {[%clk 0:00:30.4]} 20. gxf4 {[%clk 0:00:16.1]} 20... Qxh4 {[%clk
0:00:29.9]} 21. Nxe4 {[%clk 0:00:15.2]} 21... fxe4 {[%clk 0:00:29.8]} 22. e3
{[%clk 0:00:15.4]} 22... Qe7 {[%clk 0:00:22.8]} 23. Qf2 {[%clk 0:00:12.5]} 23...
Nf6 {[%clk 0:00:17]} 24. Kh1 {[%clk 0:00:12.6]} 24... h5 {[%clk 0:00:16.6]} 25.
Rg1 {[%clk 0:00:11.8]} 25... Qh7 {[%clk 0:00:16.5]} 26. Qh4 {[%clk 0:00:11.6]}
26... Kf7 {[%clk 0:00:16.6]} 27. Ba3 {[%clk 0:00:09.6]} 27... Rfd8 {[%clk
0:00:15.9]} 28. Bf1 {[%clk 0:00:09.3]} 28... Bb7 {[%clk 0:00:12.1]} 29. Be2
{[%clk 0:00:08.6]} 29... Qf5 {[%clk 0:00:11.7]} 30. Rgf1 {[%clk 0:00:06.6]}
30... Rd7 {[%clk 0:00:10.7]} 31. Qg5 {[%clk 0:00:06.7]} 31... Rg8 {[%clk
0:00:09.8]} 32. Qh4 {[%clk 0:00:06.3]} 32... Rc8 {[%clk 0:00:09.4]} 33. Qg5
{[%clk 0:00:06]} 33... Rg8 {[%clk 0:00:09.5]} 34. Qh4 {[%clk 0:00:06.4]} 34...
Rc8 {[%clk 0:00:08.7]} 1/2-1/2

[Event "Early-Titled-Tuesday-Blitz-February-13-2024"]
[Site "Chess.com"]
[Date "2024.02.13"]
[Round "4"]
[White "DamianoLew95"]
[Black "DeArron_Fox"]
[Result "1-0"]
[WhiteElo "2723"]
[BlackElo "2514"]
[TimeControl "180+1"]
[EndTime "8:42:54 PST"]
[Termination "DamianoLew95 won on time"]

1. e4 {[%clk 0:03:00.9]} 1... c5 {[%clk 0:02:59.9]} 2. Nf3 {[%clk 0:03:00.9]}
2... e6 {[%clk 0:02:59.7]} 3. d3 {[%clk 0:03:00.6]} 3... d5 {[%clk 0:02:54.5]}
4. Nbd2 {[%clk 0:03:01]} 4... Nc6 {[%clk 0:02:54.4]} 5. g3 {[%clk 0:02:59.7]}
5... Nf6 {[%clk 0:02:53]} 6. Bg2 {[%clk 0:02:56.9]} 6... Be7 {[%clk 0:02:52.9]}
7. O-O {[%clk 0:02:56]} 7... O-O {[%clk 0:02:53.3]} 8. Re1 {[%clk 0:02:53.2]}
8... Qc7 {[%clk 0:02:51]} 9. Nf1 {[%clk 0:02:45.9]} 9... dxe4 {[%clk 0:02:44]}
10. dxe4 {[%clk 0:02:45.5]} 10... Rd8 {[%clk 0:02:44.6]} 11. Qe2 {[%clk
0:02:45.6]} 11... b6 {[%clk 0:02:18.2]} 12. e5 {[%clk 0:02:43.6]} 12... Nd5
{[%clk 0:01:42.4]} 13. c3 {[%clk 0:02:42.7]} 13... a5 {[%clk 0:01:37.5]} 14. h4
{[%clk 0:02:41]} 14... a4 {[%clk 0:01:31.4]} 15. a3 {[%clk 0:02:37]} 15... Na5
{[%clk 0:01:20.2]} 16. Qe4 {[%clk 0:02:19.1]} 16... Bb7 {[%clk 0:00:18.2]} 17.
Qg4 {[%clk 0:02:14.4]} 17... Nb3 {[%clk 0:00:03.8]} 18. Bh6 {[%clk 0:02:01.4]}
18... Bf8 {[%clk 0:00:03.9]} 19. Rad1 {[%clk 0:02:01.8]} 19... Ne7 {[%clk
0:00:03.3]} 20. h5 {[%clk 0:01:48.7]} 20... Nf5 {[%clk 0:00:03]} 21. Bg5 {[%clk
0:01:48.4]} 21... Rxd1 {[%clk 0:00:03.3]} 22. Rxd1 {[%clk 0:01:49.1]} 22... h6
{[%clk 0:00:04.2]} 23. Bf4 {[%clk 0:01:46.9]} 23... Rd8 {[%clk 0:00:04.1]} 24.
Re1 {[%clk 0:01:43.2]} 24... c4 {[%clk 0:00:03.9]} 25. Nh4 {[%clk 0:01:36.7]}
25... Nxh4 {[%clk 0:00:03.5]} 26. Qxh4 {[%clk 0:01:37.6]} 26... Bc5 {[%clk
0:00:03.6]} 27. Bxb7 {[%clk 0:01:30.2]} 27... Rd3 {[%clk 0:00:02.5]} 28. Be4
{[%clk 0:01:20.2]} 28... Rd7 {[%clk 0:00:02.2]} 29. Qg4 {[%clk 0:01:14.9]} 29...
Kh8 {[%clk 0:00:02.7]} 30. Rd1 {[%clk 0:01:13.3]} 30... b5 {[%clk 0:00:02.1]}
31. Kg2 {[%clk 0:01:00.3]} 31... Qa7 {[%clk 0:00:01.4]} 32. Qe2 {[%clk
0:00:49.9]} 32... Na5 {[%clk 0:00:01.5]} 33. Rxd7 {[%clk 0:00:48.4]} 33... Qxd7
{[%clk 0:00:02.4]} 34. Qd2 {[%clk 0:00:48.4]} 34... Qc7 {[%clk 0:00:02.6]} 35.
Be3 {[%clk 0:00:42.9]} 35... Nb3 {[%clk 0:00:02.8]} 36. Qd1 {[%clk 0:00:41.6]}
36... Be7 {[%clk 0:00:03.1]} 37. f4 {[%clk 0:00:40.2]} 37... Nc5 {[%clk
0:00:03.3]} 38. Qd4 {[%clk 0:00:32.4]} 38... Nb3 {[%clk 0:00:02.1]} 39. Qb6
{[%clk 0:00:28.9]} 39... Qd7 {[%clk 0:00:02.6]} 40. Qb7 {[%clk 0:00:24.9]} 40...
Qd8 {[%clk 0:00:01.8]} 41. Qa8 {[%clk 0:00:23.5]} 41... Qxa8 {[%clk 0:00:01.6]}
42. Bxa8 {[%clk 0:00:24.4]} 1-0

[Event "Early-Titled-Tuesday-Blitz-February-13-2024"]
[Site "Chess.com"]
[Date "2024.02.13"]
[Round "4"]
[White "ChEsper99"]
[Black "tantaan"]
[Result "0-1"]
[WhiteElo "2217"]
[BlackElo "2498"]
[TimeControl "180+1"]
[EndTime "8:42:55 PST"]
[Termination "tantaan won on time"]

1. Nf3 {[%clk 0:02:57]} 1... Nf6 {[%clk 0:02:59.7]} 2. g3 {[%clk 0:02:56.9]}
2... d5 {[%clk 0:02:58.8]} 3. Bg2 {[%clk 0:02:56.5]} 3... c5 {[%clk 0:02:58.7]}
4. d4 {[%clk 0:02:55.9]} 4... Nc6 {[%clk 0:02:58.1]} 5. O-O {[%clk 0:02:52]}
5... e6 {[%clk 0:02:57.3]} 6. c4 {[%clk 0:02:50.5]} 6... dxc4 {[%clk 0:02:52.6]}
7. Qa4 {[%clk 0:02:20.7]} 7... a6 {[%clk 0:02:50.1]} 8. dxc5 {[%clk 0:02:16.2]}
8... Bxc5 {[%clk 0:02:48.5]} 9. Qxc4 {[%clk 0:02:10.7]} 9... Qe7 {[%clk
0:02:44.4]} 10. Bf4 {[%clk 0:01:59.7]} 10... b5 {[%clk 0:02:40.6]} 11. Qc1
{[%clk 0:01:57.3]} 11... Bb7 {[%clk 0:02:39.4]} 12. Ne5 {[%clk 0:01:54.2]} 12...
Rc8 {[%clk 0:02:29.4]} 13. Nxc6 {[%clk 0:01:37.1]} 13... Bxc6 {[%clk 0:02:28.4]}
14. Bxc6+ {[%clk 0:01:34.2]} 14... Rxc6 {[%clk 0:02:29.3]} 15. Qd1 {[%clk
0:01:12.1]} 15... O-O {[%clk 0:02:27.4]} 16. Nd2 {[%clk 0:01:11.1]} 16... Rd8
{[%clk 0:02:25.6]} 17. Rc1 {[%clk 0:01:09]} 17... Rcc8 {[%clk 0:02:23.4]} 18.
Qb3 {[%clk 0:00:43.8]} 18... e5 {[%clk 0:02:11.4]} 19. Be3 {[%clk 0:00:40.6]}
19... Bxe3 {[%clk 0:02:02.7]} 20. Qxe3 {[%clk 0:00:41.5]} 20... Rxc1 {[%clk
0:01:58]} 21. Rxc1 {[%clk 0:00:40.9]} 21... h6 {[%clk 0:01:54.9]} 22. Ne4 {[%clk
0:00:37.8]} 22... Nd5 {[%clk 0:01:46.7]} 23. Qc5 {[%clk 0:00:36.1]} 23... Qxc5
{[%clk 0:01:35.1]} 24. Nxc5 {[%clk 0:00:37]} 24... Rd6 {[%clk 0:01:33.1]} 25.
Kf1 {[%clk 0:00:28.8]} 25... Kf8 {[%clk 0:01:30.7]} 26. Ke1 {[%clk 0:00:24.7]}
26... Ke7 {[%clk 0:01:30.8]} 27. a3 {[%clk 0:00:19.7]} 27... Rc6 {[%clk
0:01:29.7]} 28. Nd3 {[%clk 0:00:18.4]} 28... Rxc1+ {[%clk 0:01:23.3]} 29. Nxc1
{[%clk 0:00:19.3]} 29... Kd6 {[%clk 0:01:24]} 30. Kd2 {[%clk 0:00:17.5]} 30...
e4 {[%clk 0:01:23.8]} 31. Na2 {[%clk 0:00:14.8]} 31... f5 {[%clk 0:01:21.5]} 32.
Nc3 {[%clk 0:00:11.4]} 32... Nb6 {[%clk 0:01:21.8]} 33. b3 {[%clk 0:00:10.2]}
33... Ke5 {[%clk 0:01:20.6]} 34. Ke3 {[%clk 0:00:09.2]} 34... g5 {[%clk
0:01:19.6]} 35. f4+ {[%clk 0:00:09.6]} 35... exf3 {[%clk 0:01:06.1]} 36. exf3
{[%clk 0:00:10.5]} 36... Nd5+ {[%clk 0:01:06.5]} 37. Nxd5 {[%clk 0:00:10.6]}
37... Kxd5 {[%clk 0:01:07.4]} 38. Kd3 {[%clk 0:00:10.9]} 38... h5 {[%clk
0:00:56.5]} 39. b4 {[%clk 0:00:02.3]} 39... Ke5 {[%clk 0:00:52.6]} 40. Ke3
{[%clk 0:00:02.3]} 40... Kd5 {[%clk 0:00:50.7]} 41. Kd3 {[%clk 0:00:02.4]} 41...
g4 {[%clk 0:00:45.2]} 42. f4 {[%clk 0:00:02.5]} 42... Kc6 {[%clk 0:00:43.8]} 43.
Kd4 {[%clk 0:00:02.4]} 43... Kd6 {[%clk 0:00:44.2]} 44. Ke3 {[%clk 0:00:02.7]}
44... Ke6 {[%clk 0:00:40.4]} 45. Kd3 {[%clk 0:00:02.6]} 45... Kd5 {[%clk
0:00:40.5]} 0-1

[Event "Early-Titled-Tuesday-Blitz-February-13-2024"]
[Site "Chess.com"]
[Date "2024.02.13"]
[Round "4"]
[White "GlavkonVVS"]
[Black "kpio91"]
[Result "0-1"]
[WhiteElo "2604"]
[BlackElo "2895"]
[TimeControl "180+1"]
[EndTime "8:42:56 PST"]
[Termination "kpio91 won on time"]

1. c4 {[%clk 0:03:00.1]} 1... e5 {[%clk 0:02:58.8]} 2. Nc3 {[%clk 0:02:56.7]}
2... d6 {[%clk 0:02:52.2]} 3. g3 {[%clk 0:02:56.8]} 3... f5 {[%clk 0:02:51.6]}
4. Bg2 {[%clk 0:02:57.1]} 4... Nf6 {[%clk 0:02:51.3]} 5. d3 {[%clk 0:02:57.6]}
5... Be7 {[%clk 0:02:51.3]} 6. Rb1 {[%clk 0:02:57.7]} 6... O-O {[%clk
0:02:51.2]} 7. b4 {[%clk 0:02:57.3]} 7... c6 {[%clk 0:02:45]} 8. b5 {[%clk
0:02:54.7]} 8... Be6 {[%clk 0:02:42.5]} 9. bxc6 {[%clk 0:02:52.8]} 9... bxc6
{[%clk 0:02:41.7]} 10. Nf3 {[%clk 0:02:52.8]} 10... Kh8 {[%clk 0:02:38]} 11. Qa4
{[%clk 0:02:42.5]} 11... Nfd7 {[%clk 0:02:16.3]} 12. h4 {[%clk 0:02:34.1]} 12...
Nc5 {[%clk 0:02:12.8]} 13. Qc2 {[%clk 0:02:33]} 13... Bg8 {[%clk 0:02:12.4]} 14.
O-O {[%clk 0:02:29.6]} 14... Nbd7 {[%clk 0:02:10.2]} 15. Nd2 {[%clk 0:02:22.4]}
15... Rc8 {[%clk 0:02:09.1]} 16. e3 {[%clk 0:02:12.8]} 16... f4 {[%clk 0:01:43]}
17. d4 {[%clk 0:01:25.1]} 17... exd4 {[%clk 0:01:34.2]} 18. exd4 {[%clk
0:01:25.2]} 18... Ne6 {[%clk 0:01:34.1]} 19. Nf3 {[%clk 0:01:24.5]} 19... Bf6
{[%clk 0:01:30.6]} 20. Qd3 {[%clk 0:01:11.2]} 20... fxg3 {[%clk 0:01:08.1]} 21.
fxg3 {[%clk 0:01:10.5]} 21... c5 {[%clk 0:01:08.7]} 22. d5 {[%clk 0:00:54.8]}
22... Nd4 {[%clk 0:01:08.5]} 23. Ne2 {[%clk 0:00:50.1]} 23... h6 {[%clk
0:00:58.4]} 24. Nfxd4 {[%clk 0:00:48.8]} 24... cxd4 {[%clk 0:00:57.4]} 25. Nxd4
{[%clk 0:00:47.4]} 25... Bh7 {[%clk 0:00:57.4]} 26. Nf5 {[%clk 0:00:45.9]} 26...
Ne5 {[%clk 0:00:54.5]} 27. Qe2 {[%clk 0:00:42.8]} 27... Nxc4 {[%clk 0:00:52.3]}
28. Rb4 {[%clk 0:00:32.6]} 28... Re8 {[%clk 0:00:33.5]} 29. Qf2 {[%clk
0:00:25.2]} 29... Ne5 {[%clk 0:00:33.3]} 30. Nxh6 {[%clk 0:00:17.7]} 30... Rf8
{[%clk 0:00:32.2]} 31. Nf5 {[%clk 0:00:15.2]} 31... Nd3 {[%clk 0:00:31.9]} 32.
Qd2 {[%clk 0:00:13.7]} 32... Nxb4 {[%clk 0:00:30]} 33. Qxb4 {[%clk 0:00:14]}
33... Bxf5 {[%clk 0:00:29.9]} 34. Rxf5 {[%clk 0:00:14.1]} 34... Rxc1+ {[%clk
0:00:29.4]} 35. Kh2 {[%clk 0:00:14.5]} 35... Be5 {[%clk 0:00:29.4]} 36. Rxe5
{[%clk 0:00:13.7]} 36... dxe5 {[%clk 0:00:28.4]} 37. d6 {[%clk 0:00:13.9]} 37...
Rd1 {[%clk 0:00:27.8]} 38. d7 {[%clk 0:00:13.6]} 38... Rxd7 {[%clk 0:00:27.7]}
0-1

[Event "Early-Titled-Tuesday-Blitz-February-13-2024"]
[Site "Chess.com"]
[Date "2024.02.13"]
[Round "4"]
[White "ClaudiaSof"]
[Black "Thunderbolt135"]
[Result "0-1"]
[WhiteElo "2318"]
[BlackElo "2657"]
[TimeControl "180+1"]
[EndTime "8:42:57 PST"]
[Termination "Thunderbolt135 won by resignation"]

1. d4 {[%clk 0:03:00.9]} 1... Nf6 {[%clk 0:02:59.9]} 2. Bf4 {[%clk 0:02:59.5]}
2... b6 {[%clk 0:02:57.1]} 3. e3 {[%clk 0:02:53.7]} 3... Bb7 {[%clk 0:02:56.9]}
4. Nf3 {[%clk 0:02:50.9]} 4... e6 {[%clk 0:02:52.3]} 5. Nbd2 {[%clk 0:02:47.9]}
5... Nh5 {[%clk 0:02:51.9]} 6. Bg3 {[%clk 0:02:45.4]} 6... Be7 {[%clk
0:02:47.1]} 7. Bd3 {[%clk 0:02:43]} 7... O-O {[%clk 0:02:43.5]} 8. c3 {[%clk
0:02:41.4]} 8... f5 {[%clk 0:02:39]} 9. Qe2 {[%clk 0:02:25.1]} 9... c5 {[%clk
0:02:32.9]} 10. O-O-O {[%clk 0:02:14.9]} 10... cxd4 {[%clk 0:02:18.1]} 11. cxd4
{[%clk 0:02:00.3]} 11... Nc6 {[%clk 0:02:12.6]} 12. a3 {[%clk 0:01:58.5]} 12...
f4 {[%clk 0:01:53.7]} 13. exf4 {[%clk 0:01:55.5]} 13... Nxf4 {[%clk 0:01:54.6]}
14. Bxf4 {[%clk 0:01:46.1]} 14... Rxf4 {[%clk 0:01:55.5]} 15. Qe3 {[%clk
0:01:31.6]} 15... Qf8 {[%clk 0:01:49.4]} 16. Kb1 {[%clk 0:01:23]} 16... Bd8
{[%clk 0:00:43.8]} 17. h4 {[%clk 0:01:18.7]} 17... Ne7 {[%clk 0:00:37.7]} 18.
Ng5 {[%clk 0:01:08.5]} 18... h6 {[%clk 0:00:32.3]} 19. Nde4 {[%clk 0:00:42.2]}
19... Nd5 {[%clk 0:00:21.9]} 20. Qd2 {[%clk 0:00:38.2]} 20... hxg5 {[%clk
0:00:15.3]} 21. hxg5 {[%clk 0:00:36.1]} 21... Rxe4 {[%clk 0:00:07]} 22. Bxe4
{[%clk 0:00:27.1]} 22... Nc3+ {[%clk 0:00:07.3]} 23. Qxc3 {[%clk 0:00:25.6]}
23... Bxe4+ {[%clk 0:00:08.2]} 24. Ka1 {[%clk 0:00:21.7]} 24... Bxg5 {[%clk
0:00:06.3]} 25. Qh3 {[%clk 0:00:19.6]} 25... Bh6 {[%clk 0:00:06.9]} 26. f3
{[%clk 0:00:17.7]} 26... Bc2 {[%clk 0:00:06]} 27. Rde1 {[%clk 0:00:14.8]} 27...
Bg6 {[%clk 0:00:05.3]} 28. Qg4 {[%clk 0:00:14.1]} 28... Qf5 {[%clk 0:00:04.6]}
29. Qg3 {[%clk 0:00:13]} 29... Bf4 {[%clk 0:00:04.2]} 30. Qf2 {[%clk 0:00:12.4]}
30... Bh6 {[%clk 0:00:05.1]} 31. Qe2 {[%clk 0:00:11.5]} 31... Rc8 {[%clk
0:00:04.5]} 32. Ka2 {[%clk 0:00:10.3]} 32... Rc2 {[%clk 0:00:04.7]} 33. Qd1
{[%clk 0:00:09.1]} 33... Qd5+ {[%clk 0:00:05]} 34. Kb1 {[%clk 0:00:08.2]} 34...
Qb3 {[%clk 0:00:05.5]} 0-1

[Event "Early-Titled-Tuesday-Blitz-February-13-2024"]
[Site "Chess.com"]
[Date "2024.02.13"]
[Round "4"]
[White "PolandHussars"]
[Black "Maria_Severina"]
[Result "1/2-1/2"]
[WhiteElo "2586"]
[BlackElo "2456"]
[TimeControl "180+1"]
[EndTime "8:42:58 PST"]
[Termination "Game drawn by repetition"]

1. e4 {[%clk 0:03:00.1]} 1... e5 {[%clk 0:02:59.6]} 2. Nc3 {[%clk 0:02:57.5]}
2... Nc6 {[%clk 0:02:59.3]} 3. g3 {[%clk 0:02:55.2]} 3... g6 {[%clk 0:02:56]} 4.
Bg2 {[%clk 0:02:53.2]} 4... Bg7 {[%clk 0:02:56.6]} 5. Nge2 {[%clk 0:02:51.7]}
5... d6 {[%clk 0:02:52.3]} 6. O-O {[%clk 0:02:51.2]} 6... Nge7 {[%clk
0:02:46.3]} 7. d3 {[%clk 0:02:50.4]} 7... O-O {[%clk 0:02:38.4]} 8. h3 {[%clk
0:02:45.6]} 8... f5 {[%clk 0:02:36.3]} 9. f4 {[%clk 0:02:43.6]} 9... Be6 {[%clk
0:02:35]} 10. Kh2 {[%clk 0:02:40.7]} 10... Qd7 {[%clk 0:02:34.6]} 11. Be3 {[%clk
0:02:37.2]} 11... Rae8 {[%clk 0:02:33.9]} 12. Qd2 {[%clk 0:02:37]} 12... Kh8
{[%clk 0:02:18.1]} 13. Rae1 {[%clk 0:02:36.3]} 13... fxe4 {[%clk 0:01:57]} 14.
Nxe4 {[%clk 0:02:32.9]} 14... Nf5 {[%clk 0:01:56.7]} 15. Bg1 {[%clk 0:02:27]}
15... exf4 {[%clk 0:01:48.5]} 16. Nxf4 {[%clk 0:02:25.7]} 16... Bg8 {[%clk
0:01:47.6]} 17. c3 {[%clk 0:02:20.7]} 17... b6 {[%clk 0:01:33.2]} 18. g4 {[%clk
0:02:09.5]} 18... Nh4 {[%clk 0:01:23.2]} 19. d4 {[%clk 0:02:01.3]} 19... Nxg2
{[%clk 0:01:22.3]} 20. Qxg2 {[%clk 0:01:59.6]} 20... d5 {[%clk 0:01:20.1]} 21.
Ng5 {[%clk 0:01:42.9]} 21... Rxe1 {[%clk 0:01:19.8]} 22. Rxe1 {[%clk 0:01:42.3]}
22... Rxf4 {[%clk 0:01:19.5]} 23. Qg3 {[%clk 0:01:42.4]} 23... Rf8 {[%clk
0:01:16.5]} 24. Qh4 {[%clk 0:01:32.4]} 24... Qd6+ {[%clk 0:01:11.8]} 25. Kh1
{[%clk 0:01:29.8]} 25... Qf6 {[%clk 0:01:06.6]} 26. Re6 {[%clk 0:01:25.8]} 26...
Qxe6 {[%clk 0:00:46.8]} 27. Nxe6 {[%clk 0:01:25.2]} 27... Bxe6 {[%clk
0:00:46.9]} 28. Qg3 {[%clk 0:01:23.9]} 28... Rf7 {[%clk 0:00:45.1]} 29. Qe3
{[%clk 0:01:21.9]} 29... Bd7 {[%clk 0:00:42.2]} 30. Bh2 {[%clk 0:01:22]} 30...
Kg8 {[%clk 0:00:25.1]} 31. Bxc7 {[%clk 0:01:21.1]} 31... Bf8 {[%clk 0:00:25.4]}
32. Kg2 {[%clk 0:01:12.1]} 32... Ne7 {[%clk 0:00:23.9]} 33. Be5 {[%clk
0:01:09.8]} 33... Nc6 {[%clk 0:00:23.8]} 34. Bg3 {[%clk 0:01:07.1]} 34... Re7
{[%clk 0:00:18.7]} 35. Qf3 {[%clk 0:01:05.5]} 35... Be6 {[%clk 0:00:18.8]} 36.
Bd6 {[%clk 0:01:03.7]} 36... Rf7 {[%clk 0:00:19]} 37. Qe3 {[%clk 0:01:02.3]}
37... Bxg4 {[%clk 0:00:16.6]} 38. Bxf8 {[%clk 0:01:00.7]} 38... Bf3+ {[%clk
0:00:16.4]} 39. Kg3 {[%clk 0:00:58.9]} 39... Kxf8 {[%clk 0:00:16.4]} 40. Qe6
{[%clk 0:00:57.4]} 40... Ne7 {[%clk 0:00:15.7]} 41. Qd6 {[%clk 0:00:56.5]} 41...
Be4 {[%clk 0:00:15.8]} 42. Kh2 {[%clk 0:00:52.8]} 42... Rf2+ {[%clk 0:00:15.6]}
43. Kg1 {[%clk 0:00:52.4]} 43... Rf3 {[%clk 0:00:15.6]} 44. h4 {[%clk
0:00:51.1]} 44... Kf7 {[%clk 0:00:15.8]} 45. Qc7 {[%clk 0:00:50.1]} 45... Re3
{[%clk 0:00:15]} 46. Qf4+ {[%clk 0:00:49.1]} 46... Nf5 {[%clk 0:00:15.4]} 47.
Qc7+ {[%clk 0:00:48.9]} 47... Kg8 {[%clk 0:00:15]} 48. Qb8+ {[%clk 0:00:48.1]}
48... Kg7 {[%clk 0:00:15.2]} 49. Qe5+ {[%clk 0:00:45.8]} 49... Kf7 {[%clk
0:00:15.1]} 50. Qc7+ {[%clk 0:00:44.2]} 50... Kf6 {[%clk 0:00:15.5]} 51. Qe5+
{[%clk 0:00:35.3]} 51... Kf7 {[%clk 0:00:15.5]} 52. Qc7+ {[%clk 0:00:35.5]}
1/2-1/2

[Event "Early-Titled-Tuesday-Blitz-February-13-2024"]
[Site "Chess.com"]
[Date "2024.02.13"]
[Round "4"]
[White "Zampronha1971"]
[Black "MrChessSponge"]
[Result "0-1"]
[WhiteElo "2315"]
[BlackElo "2523"]
[TimeControl "180+1"]
[EndTime "8:42:59 PST"]
[Termination "MrChessSponge won on time"]

1. e4 {[%clk 0:02:51]} 1... c5 {[%clk 0:02:59]} 2. Nf3 {[%clk 0:02:49.7]} 2...
d6 {[%clk 0:02:59]} 3. d4 {[%clk 0:02:47.9]} 3... cxd4 {[%clk 0:02:59.9]} 4.
Nxd4 {[%clk 0:02:47.1]} 4... Nf6 {[%clk 0:03:00.4]} 5. Nc3 {[%clk 0:02:47.3]}
5... a6 {[%clk 0:03:00.9]} 6. Bg5 {[%clk 0:02:46.4]} 6... e6 {[%clk 0:03:00.9]}
7. f4 {[%clk 0:02:46.2]} 7... h6 {[%clk 0:02:59.5]} 8. Bh4 {[%clk 0:02:32.4]}
8... Qb6 {[%clk 0:02:56.9]} 9. a3 {[%clk 0:02:28.8]} 9... Nbd7 {[%clk
0:02:51.1]} 10. Qd2 {[%clk 0:02:17.9]} 10... Be7 {[%clk 0:02:36.6]} 11. O-O-O
{[%clk 0:02:00.6]} 11... Nxe4 {[%clk 0:02:14.2]} 12. Nxe4 {[%clk 0:02:01.5]}
12... Bxh4 {[%clk 0:02:12.9]} 13. Nf3 {[%clk 0:02:02.2]} 13... Be7 {[%clk
0:02:11.6]} 14. Nxd6+ {[%clk 0:02:02.2]} 14... Bxd6 {[%clk 0:02:11.3]} 15. Qxd6
{[%clk 0:02:03.1]} 15... Qxd6 {[%clk 0:02:10.9]} 16. Rxd6 {[%clk 0:02:01.7]}
16... Ke7 {[%clk 0:02:11.2]} 17. Rd1 {[%clk 0:01:57.7]} 17... b5 {[%clk
0:02:10.4]} 18. Bd3 {[%clk 0:01:56.9]} 18... Bb7 {[%clk 0:02:10.4]} 19. Rhf1
{[%clk 0:01:50.2]} 19... Rac8 {[%clk 0:02:09.3]} 20. g3 {[%clk 0:01:49.1]} 20...
Bxf3 {[%clk 0:02:03.8]} 21. Rxf3 {[%clk 0:01:48.6]} 21... Rhd8 {[%clk
0:02:04.1]} 22. Be2 {[%clk 0:01:41.3]} 22... Nc5 {[%clk 0:01:53.8]} 23. Rc3
{[%clk 0:01:40.1]} 23... Rxd1+ {[%clk 0:01:48.1]} 24. Bxd1 {[%clk 0:01:39.5]}
24... Kd7 {[%clk 0:01:46.6]} 25. Bf3 {[%clk 0:01:26.3]} 25... f6 {[%clk
0:01:29.8]} 26. Bg4 {[%clk 0:01:20.1]} 26... Rc7 {[%clk 0:01:26]} 27. b4 {[%clk
0:01:12.3]} 27... f5 {[%clk 0:01:02.2]} 28. Bxf5 {[%clk 0:00:31.2]} 28... exf5
{[%clk 0:00:47.6]} 29. bxc5 {[%clk 0:00:32.1]} 29... Kc6 {[%clk 0:00:43.9]} 30.
Re3 {[%clk 0:00:30.5]} 30... Kxc5 {[%clk 0:00:38.5]} 31. Re5+ {[%clk 0:00:30.4]}
31... Kc4 {[%clk 0:00:38.7]} 32. Kb2 {[%clk 0:00:27]} 32... Rf7 {[%clk
0:00:36.1]} 33. Re6 {[%clk 0:00:15]} 33... a5 {[%clk 0:00:34.9]} 34. Rd6 {[%clk
0:00:15.5]} 34... Kc5 {[%clk 0:00:33.1]} 35. Re6 {[%clk 0:00:15.5]} 35... g5
{[%clk 0:00:31.3]} 36. Rxh6 {[%clk 0:00:12.4]} 36... gxf4 {[%clk 0:00:30.9]} 37.
gxf4 {[%clk 0:00:13.3]} 37... b4 {[%clk 0:00:27.2]} 38. a4 {[%clk 0:00:12.2]}
38... Kd4 {[%clk 0:00:25.4]} 39. Ra6 {[%clk 0:00:12.2]} 39... Ke4 {[%clk
0:00:24.5]} 40. Rxa5 {[%clk 0:00:12.9]} 40... Kxf4 {[%clk 0:00:24.6]} 41. Rb5
{[%clk 0:00:13.5]} 41... Ke3 {[%clk 0:00:21.2]} 42. Rxb4 {[%clk 0:00:09.3]}
42... f4 {[%clk 0:00:21.8]} 0-1